bitfinex/quotes_SOLUSD_20260114
["timestamp","ask_amount","ask_price","bid_price","bid_amount"]
[1768349190683,0.1311023,145.04,145.0,6.89655172]
[1768349192571,0.12550063,145.05,145.0,7.58787268]
[1768349192764,5.3353666,145.05,145.0,7.58787268]
[1768349193871,12.22961113,145.05,145.01,0.69132096]
[1768349194077,7.01974516,145.05,145.01,0.69132096]
[1768349196251,7.01974516,145.05,145.01,7.58736103]
[1768349196774,5.20986597,145.04,145.0,7.58628502]
[1768349197070,17.82316199,145.05,145.0,7.58628502]
[1768349197269,12.22961113,145.05,145.0,7.58628502]
[1768349197468,17.82316199,145.05,145.0,7.58628502]
[1768349197663,12.22961113,145.05,145.0,7.58628502]
[1768349197867,0.68566795,145.04,144.99,6.89675308]
[1768349198059,18.45553392,145.04,144.99,7.58649344]
[1768349198260,4.52289979,145.03,144.99,7.58649344]
[1768349198463,4.52289979,145.02,144.99,7.58649344]
[1768349198661,4.52289979,145.01,144.99,7.58649344]
[1768349198860,18.45553392,145.04,144.99,7.58649344]
[1768349199075,4.52300428,145.03,145.0,6.89653461]
[1768349199283,4.52300428,145.02,145.0,6.89653461]
[1768349199486,104.2,145.07,145.02,0.68974036]
[1768349199658,12.56,145.07,145.02,0.68974036]
[1768349199858,12.67994558,145.07,145.02,0.68974036]
[1768349200272,12.56,145.07,145.03,0.68974036]
[1768349200753,7.58949208,145.09,145.04,0.68974036]
[1768349201084,5.20986597,145.2,145.08,0.68974036]
[1768349201085,5.11779996,145.13,145.08,0.68974036]
[1768349201269,4.4208626,145.13,145.09,7.58201412]
[1768349201467,4.4208626,145.13,145.1,0.68974036]
[1768349202679,11.50035419,145.19,145.12,0.68974036]
[1768349202866,5.90680333,145.19,145.13,0.68974036]
[1768349203058,5.20986597,145.18,145.13,0.68974036]
[1768349203268,12.09831223,145.18,145.13,0.68974036]
[1768349203486,12.21825781,145.18,145.13,0.68974036]
[1768349203860,5.33552376,145.16,145.1,0.68974036]
[1768349204059,5.20986597,145.15,145.1,7.58120792]
[1768349204380,5.33552376,145.16,145.1,7.58120792]
[1768349204678,5.20986597,145.15,145.1,7.58120792]
[1768349205381,19.56860875,145.17,145.11,0.68974036]
[1768349205579,24.77847472,145.17,145.11,0.68974036]
[1768349205967,5.20986597,145.14,145.09,7.58186083]
[1768349206177,5.20986597,145.15,145.1,7.58145209]
[1768349206679,12.67994558,145.17,145.11,0.68974036]
[1768349206880,17.88981155,145.17,145.11,0.68974036]
[1768349207068,12.56,145.17,145.12,0.68974036]
[1768349207269,12.56,145.17,145.13,7.5801145]
[1768349207673,4.4430056,145.25,145.19,0.68974036]
[1768349207975,0.89693736,145.26,145.22,0.68974036]
[1768349207976,0.2,145.26,145.22,0.68974036]
[1768349209089,0.2,145.26,145.23,0.68974036]
[1768349209385,0.2,145.26,145.23,7.57502578]
[1768349212067,0.2,145.26,145.23,12.77127623]
[1768349212383,0.2,145.29,145.24,5.88599081]
[1768349212887,0.2,145.29,145.26,5.88599081]
[1768349213292,0.2,145.29,145.26,0.68974036]
[1768349215301,0.2,145.29,145.26,12.77013562]
[1768349217989,39.18976723,145.33,145.28,5.19625045]
[1768349217990,17.48788375,145.33,145.28,5.19625045]
[1768349218477,0.69693736,145.32,145.27,0.68974036]
[1768349218687,0.69693736,145.32,145.27,5.88599081]
[1768349218890,0.69693736,145.32,145.27,0.68974036]
[1768349219696,0.69693736,145.32,145.26,5.19625045]
[1768349219998,7.57877618,145.31,145.26,5.88599081]
[1768349220596,0.69693736,145.28,145.22,5.19625045]
[1768349220796,0.69693736,145.26,145.21,7.57598778]
[1768349221094,0.69693736,145.28,145.23,5.88599081]
[1768349221395,0.69693736,145.28,145.23,9.13302585]
[1768349221593,0.69693736,145.28,145.23,16.01851154]
[1768349222185,6.88317875,145.29,145.24,9.13302585]
[1768349222383,20.1193297,145.3,145.25,9.13302585]
[1768349224085,20.1193297,145.3,145.25,0.68974036]
[1768349224676,20.1193297,145.3,145.25,16.0176433]
[1768349225100,20.1193297,145.3,145.25,0.68974036]
[1768349225788,20.1193297,145.3,145.25,16.0176827]
[1768349227503,20.11954443,145.3,145.25,16.0176827]
[1768349229009,20.11954443,145.3,145.25,7.57439721]
[1768349229194,20.11954443,145.3,145.25,16.0176827]
[1768349229396,20.11954443,145.3,145.25,10.75590788]
[1768349230501,0.68398648,145.29,145.25,0.68974036]
[1768349230911,0.68398648,145.29,145.25,10.75584103]
[1768349233399,0.68398648,145.29,145.25,7.57433036]
[1768349233598,7.56682917,145.29,145.25,0.68974036]
[1768349233804,7.56682917,145.29,145.24,10.06656626]
[1768349234010,7.56682917,145.29,145.24,10.75703476]
[1768349235709,7.56682917,145.29,145.24,7.57552409]
[1768349235919,0.68398648,145.28,145.19,0.6904685]
[1768349236107,0.68398648,145.26,145.21,6.88641977]
[1768349236418,0.68398648,145.24,145.18,7.57831583]
[1768349236719,0.68398648,145.23,145.17,10.76028496]
[1768349237021,0.68398648,145.23,145.18,10.06930887]
[1768349237208,0.68398648,145.23,145.17,10.76031076]
[1768349237415,0.70711249,145.22,145.15,3.86088039]
[1768349237802,0.70711249,145.22,145.16,0.67936972]
[1768349238120,13.24711249,145.24,145.2,0.67936972]
[1768349239008,13.24711249,145.24,145.2,3.86088039]
[1768349240013,13.24711249,145.24,145.2,7.56633926]
[1768349240214,13.24711249,145.24,145.2,10.74784993]
[1768349240415,0.70711249,145.24,145.2,10.74784993]
[1768349240795,0.70711249,145.24,145.2,7.56633926]
[1768349240999,7.59229496,145.24,145.2,0.67936972]
[1768349241204,7.59229496,145.24,145.19,7.5666972]
[1768349241505,0.70711249,145.23,145.17,0.67936972]
[1768349241710,0.70711249,145.23,145.17,3.86088039]
[1768349242112,6.88610384,145.22,145.17,10.74934751]
[1768349242299,7.59321633,145.22,145.17,10.74934751]
[1768349242507,7.56321634,145.22,145.17,10.74934751]
[1768349242706,7.56321634,145.22,145.17,7.56783684]
[1768349242908,7.53321635,145.22,145.17,10.74934751]
[1768349243732,0.70711249,145.22,145.17,10.74934751]
[1768349243924,0.70711249,145.22,145.15,17.2229995]
[1768349244108,0.70711249,145.2,145.14,3.86088039]
[1768349244419,0.70711249,145.2,145.16,6.88890734]
[1768349244420,4.51243428,145.19,145.16,6.88890734]
[1768349244608,0.70711249,145.2,145.16,6.88890734]
[1768349244806,4.51253334,145.19,145.15,0.67936972]
[1768349245122,0.70711249,145.2,145.15,0.67936972]
[1768349245419,4.51240716,145.19,145.15,3.86088039]
[1768349245622,0.70711249,145.2,145.15,3.86088039]
[1768349245828,4.5172085,145.19,145.15,10.75001519]
[1768349246122,7.59427595,145.2,145.15,0.67936972]
[1768349246310,5.22139964,145.19,145.14,6.8897662]
[1768349246631,4.51428715,145.18,145.15,6.88942248]
[1768349247326,4.51428715,145.18,145.16,0.67936972]
[1768349247622,0.70711249,145.23,145.17,3.18151067]
[1768349247923,0.70711249,145.23,145.18,6.8880011]
[1768349248224,0.70711249,145.23,145.19,3.18151067]
[1768349248607,0.70711249,145.21,145.12,6.6801107]
[1768349248812,3.18151067,145.22,145.15,0.67936972]
[1768349249825,116.74,145.21,145.13,0.67936972]
[1768349250130,27.28619386,145.2,145.13,7.56960496]
[1768349250330,27.28619386,145.2,145.13,6.89023524]
[1768349250509,27.28619386,145.2,145.12,10.07227056]
[1768349250825,27.28619386,145.2,145.1,29.86895801]
[1768349250826,0.70711249,145.15,145.1,0.1]
[1768349251026,0.70711249,145.14,145.1,0.1]
[1768349251524,0.70711249,145.14,145.1,6.99177677]
[1768349252827,6.88914851,145.16,145.1,16.13161079]
[1768349252828,0.70711249,145.16,145.1,16.13161079]
[1768349253034,0.70711249,145.16,145.1,33.36110768]
[1768349253910,0.70711249,145.12,145.1,0.1]
[1768349254110,12.54,145.18,145.1,0.1]
[1768349254111,0.70711249,145.14,145.1,0.1]
[1768349254423,0.70711249,145.14,145.1,6.9916711]
[1768349255025,20.10128751,145.18,145.12,0.70711249]
[1768349255933,0.67312726,145.16,145.1,24.92828048]
[1768349256326,13.21312726,145.18,145.12,0.70711249]
[1768349256528,13.21312726,145.18,145.13,0.70711249]
[1768349256921,0.67312726,145.17,145.11,9.16757679]
[1768349257918,0.67312726,145.17,145.12,0.70711249]
[1768349258129,0.67312726,145.17,145.13,6.89037414]
[1768349258718,8.4604643,145.21,145.15,0.7222147]
[1768349258923,21.0004643,145.22,145.15,0.7222147]
[1768349259323,21.0004643,145.22,145.15,9.182679]
[1768349259535,4.52046684,145.21,145.16,0.7222147]
[1768349259835,27.88685101,145.22,145.16,7.61073028]
[1768349260039,4.52056778,145.21,145.16,7.61073028]
[1768349260238,27.88685101,145.22,145.16,7.61073028]
[1768349260435,4.52121706,145.21,145.16,6.88851558]
[1768349260739,5.19434432,145.2,145.16,6.88884831]
[1768349260921,13.21312726,145.22,145.16,16.07152731]
[1768349261124,4.52175215,145.21,145.16,33.29390262]
[1768349261348,13.21312726,145.22,145.16,33.29390262]
[1768349261542,5.19521187,145.21,145.16,33.29390262]
[1768349261725,0.67312726,145.21,145.16,33.29390262]
[1768349261923,0.67312726,145.21,145.18,6.8880011]
[1768349262142,12.54,145.22,145.18,6.8880011]
[1768349262341,4.52224145,145.21,145.18,6.8880011]
[1768349262639,13.21312726,145.22,145.18,6.8880011]
[1768349263253,8.4604643,145.27,145.22,0.7222147]
[1768349263433,4.52578217,145.26,145.22,0.66221472]
[1768349263637,4.52578217,145.25,145.22,0.66221472]
[1768349263944,0.67312726,145.27,145.22,0.66221472]
[1768349264127,4.52562298,145.26,145.22,0.66221472]
[1768349264329,0.67312726,145.27,145.22,0.66221472]
[1768349264538,28.55652788,145.29,145.22,0.66221472]
[1768349264741,5.2003915,145.28,145.22,0.66221472]
[1768349264941,4.52726424,145.27,145.22,0.66221472]
[1768349265140,0.67312726,145.28,145.22,0.66221472]
[1768349265141,0.67312726,145.28,145.23,6.88562969]
[1768349265346,5.19967502,145.27,145.23,6.88562969]
[1768349265542,4.52654776,145.26,145.23,6.88562969]
[1768349265719,4.52654776,145.26,145.23,7.60784439]
[1768349266043,28.55652788,145.29,145.23,7.60784439]
[1768349266246,4.52688525,145.28,145.23,7.60784439]
[1768349266537,28.55652788,145.29,145.23,7.60784439]
[1768349266538,13.21312726,145.29,145.23,7.60784439]
[1768349266737,5.20039181,145.28,145.23,7.60784439]
[1768349266936,4.52726455,145.27,145.23,7.60784439]
[1768349267137,0.67312726,145.28,145.23,7.60784439]
[1768349267442,4.52719247,145.27,145.24,0.7222147]
[1768349267624,12.54,145.29,145.24,0.7222147]
[1768349267826,4.52743882,145.28,145.24,0.7222147]
[1768349268029,12.54,145.29,145.24,0.7222147]
[1768349268333,4.52744912,145.28,145.24,0.7222147]
[1768349268533,4.52744912,145.27,145.24,0.7222147]
[1768349268732,12.54,145.29,145.24,0.7222147]
[1768349268937,4.52794905,145.28,145.24,0.7222147]
[1768349269142,0.67312726,145.28,145.24,0.7222147]
[1768349269322,0.67312726,145.28,145.25,6.88468158]
[1768349271340,0.67312726,145.28,145.24,6.8851556]
[1768349272244,12.54,145.29,145.24,7.6073703]
[1768349272443,4.52872941,145.28,145.24,7.6073703]
[1768349272630,13.21312726,145.29,145.24,7.6073703]
[1768349272837,4.52861877,145.28,145.24,7.6073703]
[1768349273037,13.21312726,145.29,145.24,7.6073703]
[1768349273241,4.52861877,145.28,145.24,7.6073703]
[1768349273442,13.21312726,145.29,145.24,7.6073703]
[1768349273649,4.5287918,145.28,145.24,7.6073703]
[1768349273849,3.18199723,145.31,145.27,3.18199723]
[1768349273850,0.67312726,145.31,145.27,3.18199723]
[1768349274150,0.67312726,145.31,145.27,0.7222147]
[1768349275441,0.67312726,145.31,145.28,6.88325991]
[1768349275645,0.67312726,145.33,145.28,6.88325991]
[1768349275830,12.54,145.34,145.29,0.7222147]
[1768349275831,13.21312726,145.34,145.29,0.7222147]
[1768349276345,13.21312726,145.34,145.29,3.90421193]
[1768349276847,12.54,145.34,145.3,3.90421193]
[1768349277028,12.54,145.34,145.3,3.18199723]
[1768349277228,0.67312726,145.33,145.31,6.88183882]
[1768349277535,4.35029849,145.36,145.31,10.06383605]
[1768349278046,4.35029849,145.36,145.31,27.26843311]
[1768349278353,4.35029849,145.36,145.31,6.88183882]
[1768349278547,4.35029849,145.36,145.31,10.06383605]
[1768349278742,4.35029849,145.36,145.31,6.88183882]
[1768349279057,11.22988632,145.36,145.31,7.60405352]
[1768349279344,4.35029849,145.36,145.31,7.60405352]
[1768349279525,0.67312726,145.35,145.31,7.60405352]
[1768349280751,11.90289992,145.36,145.31,7.60405352]
[1768349281825,5.02342575,145.36,145.31,7.60405352]
[1768349282451,11.90290573,145.36,145.31,7.60405352]
[1768349282745,4.35029849,145.36,145.33,0.7222147]
[1768349283054,13.26441102,145.36,145.31,0.7222147]
[1768349283260,13.26441102,145.36,145.31,7.60404243]
[1768349283555,0.67312726,145.35,145.3,0.7222147]
[1768349283742,0.67312726,145.35,145.3,7.60442364]
[1768349284048,7.55322154,145.35,145.31,0.7222147]
[1768349284852,0.67312726,145.34,145.27,0.66611785]
[1768349285034,111.80072551,145.35,145.3,0.66611785]
[1768349285225,4.35029849,145.36,145.33,0.66611785]
[1768349285957,0.10000001,145.36,145.33,0.66611785]
[1768349287448,0.10000001,145.36,145.33,7.546973]
[1768349288942,0.10000001,145.36,145.34,0.66611785]
[1768349289532,0.10000001,145.36,145.33,7.546973]
[1768349292460,0.72063123,145.34,145.29,6.88244748]
[1768349292953,0.72063123,145.34,145.3,0.66611785]
[1768349293157,0.72063123,145.34,145.28,2.03463125]
[1768349293158,0.72063123,145.32,145.28,0.66611785]
[1768349293334,0.72063123,145.32,145.28,7.54920279]
[1768349293936,7.60119443,145.34,145.29,0.66611785]
[1768349294160,0.72063123,145.33,145.28,6.88308494]
[1768349294358,13.26063123,145.35,145.29,0.66611785]
[1768349294657,13.26063123,145.35,145.31,6.88183882]
[1768349295745,13.26063123,145.35,145.31,7.54795667]
[1768349297446,13.26063123,145.35,145.32,0.69743889]
[1768349297447,12.54,145.35,145.32,0.69743889]
[1768349298058,12.54,145.35,145.31,7.57927771]
[1768349298567,0.10000001,145.36,145.34,0.69743889]
[1768349298860,0.10000001,145.36,145.32,24.08467896]
[1768349298861,0.10000001,145.36,145.33,0.69743889]
[1768349299161,0.2,145.37,145.33,2.73207014]
[1768349299661,0.2,145.37,145.34,0.69743889]
[1768349300155,12.54,145.4,145.36,0.69743889]
[1768349300365,4.52135285,145.39,145.36,7.57687916]
[1768349300570,0.71084864,145.39,145.36,6.87944027]
[1768349300736,17.64594143,145.43,145.4,0.69743889]
[1768349300737,0.45500001,145.43,145.4,0.69743889]
[1768349301343,0.2,145.45,145.4,0.69743889]
[1768349301645,4.52358374,145.44,145.4,0.69743889]
[1768349301836,0.2,145.45,145.4,0.69743889]
[1768349302040,4.52367189,145.44,145.4,0.69743889]
[1768349302237,4.52677033,145.43,145.37,0.69743889]
[1768349302441,7.07527007,145.45,145.36,24.07789096]
[1768349302442,9.10990132,145.45,145.39,0.69743889]
[1768349302659,4.5250311,145.44,145.4,0.69743889]
[1768349302866,4.5250311,145.43,145.4,0.69743889]
[1768349303048,7.07527007,145.45,145.4,0.69743889]
[1768349303251,4.52533675,145.44,145.4,0.69743889]
[1768349303450,4.52533675,145.43,145.4,0.69743889]
[1768349303663,9.34743766,145.45,145.4,0.69743889]
[1768349303963,4.5270275,145.44,145.4,0.69743889]
[1768349304169,0.70147658,145.42,145.36,7.57687316]
[1768349304347,6.56129873,145.41,145.36,7.57687316]
[1768349304662,7.25822869,145.4,145.34,7.57776467]
[1768349304960,4.52432584,145.39,145.35,0.69743889]
[1768349305165,13.23692996,145.4,145.35,0.69743889]
[1768349305365,4.52507317,145.39,145.35,0.69743889]
[1768349305670,13.23692996,145.4,145.35,0.69743889]
[1768349305861,4.52521389,145.39,145.35,7.57723627]
[1768349306050,15.27156121,145.4,145.35,7.57723627]
[1768349306364,4.52518346,145.39,145.35,7.57723627]
[1768349306671,15.27156121,145.4,145.35,7.57737682]
[1768349306672,22.14922294,145.4,145.35,7.57737682]
[1768349306870,4.52731073,145.39,145.35,7.57737682]
[1768349307047,22.14922294,145.4,145.35,7.57737682]
[1768349307247,4.52744809,145.39,145.35,7.57737682]
[1768349307447,22.14922294,145.4,145.35,7.57737682]
[1768349307659,4.530963,145.39,145.35,7.57737682]
[1768349307865,22.14922294,145.4,145.35,7.57737682]
[1768349308070,4.53095796,145.39,145.35,7.57737682]
[1768349308375,4.53318381,145.38,145.35,7.57737682]
[1768349308552,22.14922294,145.4,145.35,7.57737682]
[1768349308749,4.53320181,145.39,145.35,7.57737682]
[1768349308958,4.53320181,145.38,145.35,7.57737682]
[1768349309161,22.14922294,145.4,145.35,7.57737682]
[1768349309669,2.28594708,145.39,145.34,6.88024585]
[1768349309971,2.28594708,145.39,145.34,7.57768474]
[1768349310173,0.25572741,145.37,145.32,0.69743889]
[1768349310355,2.29035866,145.37,145.32,0.69743889]
[1768349310663,12.54,145.4,145.36,0.69743889]
[1768349311653,12.54,145.4,145.37,0.69743889]
[1768349313152,0.24222213,145.41,145.36,6.87916483]
[1768349313478,5.64107757,145.44,145.4,0.69743889]
[1768349313654,5.84107757,145.45,145.41,7.574545]
[1768349314354,5.84107757,145.45,145.41,0.69743889]
[1768349315367,0.2,145.45,145.41,0.69743889]
[1768349315773,0.2,145.45,145.41,7.57448742]
[1768349316559,7.07531549,145.45,145.41,0.69743889]
[1768349316763,12.71639306,145.45,145.41,0.69743889]
[1768349317267,7.07531549,145.45,145.41,0.69743889]
[1768349317469,12.71639306,145.45,145.41,0.69743889]
[1768349317670,14.75102431,145.45,145.41,0.69743889]
[1768349317977,6.30187422,145.44,145.39,0.71277422]
[1768349318666,8.33650547,145.44,145.39,0.71277422]
[1768349319068,8.33650547,145.44,145.4,0.71277422]
[1768349319267,6.30187422,145.44,145.4,0.71277422]
[1768349320057,2.03463125,145.43,145.4,0.71277422]
[1768349320580,0.65705956,145.42,145.36,0.71277422]
[1768349320875,2.32904487,145.39,145.34,7.59283092]
[1768349321056,4.54619505,145.38,145.35,7.59267419]
[1768349321258,4.54619505,145.37,145.35,0.71277422]
[1768349321578,21.43268504,145.39,145.35,0.71277422]
[1768349321777,14.55463125,145.39,145.35,0.71277422]
[1768349322166,12.52,145.39,145.35,0.71277422]
[1768349322471,2.03463125,145.41,145.38,0.71277422]
[1768349322664,2.03463125,145.41,145.35,0.71277422]
[1768349323075,2.03463125,145.41,145.37,0.71277422]
[1768349323858,2.69924087,145.43,145.37,0.71277422]
[1768349324065,2.03463125,145.42,145.37,0.71277422]
[1768349325277,8.91133379,145.42,145.38,0.71277422]
[1768349326480,2.03463125,145.42,145.38,7.59113135]
[1768349326681,2.03463125,145.42,145.39,0.71277422]
[1768349328402,0.66460962,145.4,145.35,7.59236977]
[1768349329466,19.22621425,145.42,145.36,0.71277422]
[1768349329467,0.66460962,145.42,145.36,0.71277422]
[1768349329668,0.66460962,145.42,145.37,0.71277422]
[1768349330367,0.66460962,145.42,145.38,6.87852524]
[1768349331593,0.66460962,145.42,145.38,0.71277422]
[1768349332278,2.03463125,145.43,145.38,0.71277422]
[1768349332583,2.69924087,145.43,145.38,0.71277422]
[1768349332788,0.66460962,145.43,145.38,0.71277422]
[1768349333188,9.57540173,145.43,145.38,0.71277422]
[1768349333681,4.55297735,145.42,145.38,0.71277422]
[1768349333888,4.55297735,145.41,145.38,0.71277422]
[1768349334093,9.57540173,145.43,145.38,0.71277422]
[1768349334296,5.21758697,145.42,145.38,0.71277422]
[1768349334473,4.55297735,145.41,145.38,0.71277422]
[1768349334675,0.66460962,145.41,145.36,0.71277422]
[1768349334875,4.55223428,145.4,145.36,0.71277422]
[1768349335075,4.55223428,145.39,145.36,0.71277422]
[1768349335374,0.66460962,145.41,145.36,0.71277422]
[1768349335580,4.55286512,145.4,145.37,6.87895384]
[1768349335794,0.66460962,145.41,145.37,6.87895384]
[1768349335795,4.55300192,145.39,145.37,6.87895384]
[1768349336112,0.66460962,145.41,145.37,6.87895384]
[1768349336283,4.55286613,145.4,145.37,6.87895384]
[1768349336602,4.55286613,145.39,145.37,6.87895384]
[1768349336789,0.66460962,145.41,145.37,6.87895384]
[1768349336970,4.5533266,145.4,145.37,6.87895384]
[1768349337174,4.5533266,145.39,145.37,6.87895384]
[1768349337375,7.5417314,145.41,145.37,6.87895384]
[1768349337576,5.14013246,145.43,145.39,0.59921566]
[1768349337775,5.14013246,145.43,145.4,6.87757909]
[1768349338206,7.54029833,145.44,145.39,7.47705486]
[1768349338401,0.66460962,145.43,145.39,6.8778392]
[1768349338698,6.54029833,145.44,145.39,6.8778392]
[1768349339600,2.03463125,145.43,145.37,6.87880401]
[1768349340198,2.03463125,145.44,145.38,7.54312984]
[1768349340392,12.72,145.45,145.39,0.66460962]
[1768349340696,0.66460962,145.44,145.39,2.69924087]
[1768349340903,0.66460962,145.44,145.39,2.03463125]
[1768349341282,0.66460962,145.44,145.39,0.66460962]
[1768349341679,0.66460962,145.43,145.38,6.87840968]
[1768349342184,0.66460962,145.44,145.39,7.5423576]
[1768349342490,0.66460962,145.44,145.39,0.66460962]
[1768349343686,0.66460962,145.42,145.37,6.87889269]
[1768349344787,0.66460962,145.4,145.34,6.88007312]
[1768349345583,0.66460962,145.4,145.34,6.88041832]
[1768349346491,0.71859153,145.39,145.34,6.88041832]
[1768349347696,0.71859153,145.39,145.34,24.08146414]
[1768349348100,0.71859153,145.39,145.34,24.74607376]
[1768349348408,0.71859153,145.4,145.34,6.88041832]
[1768349348794,7.45806782,145.44,145.37,0.71731624]
[1768349349006,0.2,145.45,145.39,0.71731624]
[1768349349318,3.17594398,145.43,145.37,0.71731624]
[1768349349716,4.5658016,145.42,145.36,0.71731624]
[1768349350018,4.5658016,145.41,145.36,7.59651493]
[1768349350197,4.5658016,145.4,145.36,7.59651493]
[1768349350393,4.5658016,145.39,145.35,6.87974973]
[1768349350692,4.5658016,145.38,145.35,7.59706597]
[1768349350899,4.5658016,145.37,145.35,6.87974973]
[1768349351201,0.71859153,145.39,145.35,6.87974973]
[1768349351406,4.56555978,145.38,145.35,6.87974973]
[1768349351608,0.71859153,145.39,145.36,6.87947165]
[1768349352411,0.71859153,145.41,145.36,7.59678789]
[1768349352617,0.71859153,145.41,145.36,10.77273187]
[1768349354612,0.71859153,145.41,145.35,17.19922107]
[1768349354613,0.71859153,145.4,145.35,6.8797601]
[1768349354806,0.71859153,145.4,145.36,10.77269978]
[1768349356098,0.71859153,145.4,145.36,7.5967558]
[1768349356416,0.71859153,145.4,145.36,10.77269978]
[1768349357114,0.71859153,145.4,145.37,3.17594398]
[1768349357315,0.6880476,145.42,145.36,7.5967558]
[1768349357510,0.6880476,145.42,145.36,10.77269978]
[1768349358316,0.6880476,145.41,145.36,7.5967558]
[1768349358521,0.6880476,145.41,145.36,10.77269978]
[1768349359216,0.6880476,145.41,145.37,3.17594398]
[1768349359722,0.6880476,145.41,145.37,3.86975317]
[1768349360412,0.6880476,145.41,145.37,10.74874427]
[1768349360607,0.6880476,145.41,145.37,10.05493508]
[1768349360806,0.6880476,145.41,145.37,3.17594398]
[1768349361005,0.6880476,145.41,145.37,3.86975317]
[1768349361202,0.6880476,145.41,145.37,0.69380919]
[1768349361401,0.6880476,145.41,145.37,7.57277822]
[1768349361932,0.6880476,145.41,145.37,0.69380919]
[1768349362649,0.6880476,145.43,145.38,0.69380919]
[1768349363122,0.6880476,145.42,145.38,0.69380919]
[1768349363832,5.25622757,145.41,145.36,0.69380919]
[1768349364123,4.56817997,145.4,145.36,0.69380919]
[1768349364326,4.56817997,145.39,145.36,0.69380919]
[1768349364521,4.56817997,145.38,145.36,0.69380919]
[1768349364726,12.52,145.4,145.36,0.69380919]
[1768349364926,4.56764251,145.39,145.36,0.69380919]
[1768349365134,4.56764251,145.38,145.36,0.69380919]
[1768349365326,12.52,145.4,145.36,7.57321701]
[1768349365528,4.56815337,145.39,145.36,7.57321701]
[1768349365725,4.56815337,145.38,145.36,7.57321701]
[1768349366027,12.52,145.4,145.37,0.69380919]
[1768349366230,4.56816151,145.39,145.37,0.69380919]
[1768349366437,4.56816151,145.38,145.37,0.69380919]
[1768349366831,4.56816151,145.39,145.37,0.69380919]
[1768349367036,4.56816151,145.38,145.37,0.69380919]
[1768349367727,4.56816151,145.39,145.37,0.69380919]
[1768349367929,4.56816151,145.38,145.35,10.74948503]
[1768349368229,12.52,145.4,145.37,3.86975317]
[1768349368437,12.52,145.4,145.37,0.69380919]
[1768349369632,13.2080476,145.43,145.39,0.69380919]
[1768349370106,0.6880476,145.42,145.38,6.87852524]
[1768349370935,0.6880476,145.42,145.38,10.05446922]
[1768349371435,0.6880476,145.42,145.38,10.74827841]
[1768349372138,0.8880476,145.45,145.41,3.17594398]
[1768349372323,0.8880476,145.45,145.41,3.86975317]
[1768349372636,0.6880476,145.44,145.38,24.07483835]
[1768349372814,39.8201107,145.44,145.32,0.69380919]
[1768349373135,3.17594398,145.36,145.3,0.69380919]
[1768349373317,6.6801107,145.41,145.3,0.69380919]
[1768349373318,12.52,145.35,145.31,0.69380919]
[1768349373518,12.52,145.36,145.31,0.69380919]
[1768349373717,3.17594398,145.37,145.31,0.69380919]
[1768349373932,12.52,145.36,145.31,0.69380919]
[1768349374433,10.05529543,145.37,145.31,7.57541333]
[1768349374729,12.52,145.36,145.31,7.57541333]
[1768349374923,0.68355009,145.35,145.3,0.70956054]
[1768349375514,0.68355009,145.35,145.3,7.59185921]
[1768349376239,7.56393943,145.35,145.3,0.70956054]
[1768349376444,7.56393943,145.35,145.3,7.59186571]
[1768349377635,3.85508606,145.33,145.28,0.70956054]
[1768349377932,0.24711307,145.32,145.28,7.59281876]
[1768349378136,0.67482179,145.31,145.26,7.59342138]
[1768349378930,3.85076577,145.31,145.26,0.70956054]
[1768349379129,0.25139016,145.3,145.26,0.70956054]
[1768349379537,7.57707288,145.34,145.29,0.70956054]
[1768349379836,12.54,145.32,145.29,7.59231609]
[1768349380418,0.23006406,145.36,145.31,3.88550452]
[1768349380719,0.69170031,145.36,145.31,3.88550452]
[1768349381036,0.69170031,145.36,145.31,3.17594398]
[1768349381535,0.69170031,145.36,145.31,10.05735121]
[1768349382722,0.69170031,145.36,145.32,3.17594398]
[1768349383623,7.57119503,145.36,145.31,10.05735121]
[1768349383826,0.69170031,145.36,145.32,3.17594398]
[1768349384425,0.69170031,145.36,145.32,0.70956054]
[1768349384641,0.69170031,145.36,145.32,3.88550452]
[1768349384841,0.69170031,145.36,145.32,10.76672209]
[1768349385538,0.69170031,145.36,145.31,10.0575981]
[1768349385717,7.571278,145.36,145.31,10.0575981]
[1768349386037,7.571278,145.36,145.31,10.76715864]
[1768349386228,0.23468043,145.35,145.3,3.17594398]
[1768349386742,0.23468043,145.35,145.31,3.17594398]
[1768349387329,7.11465418,145.35,145.3,10.76763555]
[1768349388529,0.23468043,145.35,145.3,10.76763555]
[1768349389023,0.23468043,145.35,145.31,0.70956054]
[1768349389222,0.23468043,145.35,145.31,3.88550452]
[1768349389636,7.11465182,145.35,145.31,3.88550452]
[1768349390024,0.23468043,145.35,145.31,3.88550452]
[1768349390223,7.10971376,145.36,145.31,3.88550452]
[1768349390649,7.10971376,145.36,145.31,0.70956054]
[1768349390946,0.69170031,145.35,145.31,3.17594398]
[1768349391122,0.69170031,145.35,145.31,6.88181831]
[1768349391322,0.69170031,145.35,145.31,10.05776229]
[1768349391548,0.69170031,145.35,145.31,6.88181831]
[1768349391836,0.69170031,145.35,145.31,10.76732283]
[1768349392016,0.69170031,145.35,145.32,3.17594398]